[Event "Early-Titled-Tuesday-Blitz-December-26-2023"]
[Site "Chess.com"]
[Date "2023.12.26"]
[Round "9"]
[White "arturdailima"]
[Black "Felix-Rose"]
[Result "1-0"]
[WhiteElo "2329"]
[BlackElo "2245"]
[TimeControl "180+1"]
[EndTime "9:45:21 PST"]
[Termination "arturdailima won by resignation"]

1. c4 {[%clk 0:03:00.9]} 1... Nf6 {[%clk 0:02:58.7]} 2. Nf3 {[%clk 0:02:57.4]}
2... e6 {[%clk 0:02:57.8]} 3. d4 {[%clk 0:02:56.3]} 3... d5 {[%clk 0:02:58.2]}
4. e3 {[%clk 0:02:56.7]} 4... Be7 {[%clk 0:02:58.2]} 5. Nc3 {[%clk 0:02:56.2]}
5... O-O {[%clk 0:02:58.6]} 6. a3 {[%clk 0:02:56.2]} 6... b6 {[%clk 0:02:58.7]}
7. cxd5 {[%clk 0:02:52.5]} 7... Nxd5 {[%clk 0:02:58.5]} 8. Bd2 {[%clk
0:02:46.5]} 8... Bb7 {[%clk 0:02:56.4]} 9. Bd3 {[%clk 0:02:46.3]} 9... Nf6
{[%clk 0:02:48.6]} 10. Qe2 {[%clk 0:02:36.1]} 10... c5 {[%clk 0:02:47.7]} 11.
dxc5 {[%clk 0:02:35.6]} 11... Bxc5 {[%clk 0:02:46]} 12. Rd1 {[%clk 0:02:35.6]}
12... a5 {[%clk 0:02:42.6]} 13. O-O {[%clk 0:02:34.5]} 13... Nc6 {[%clk
0:02:38.1]} 14. e4 {[%clk 0:02:32.4]} 14... Nd4 {[%clk 0:02:27.1]} 15. Nxd4
{[%clk 0:02:30.4]} 15... Bxd4 {[%clk 0:02:16.3]} 16. Bg5 {[%clk 0:02:28.4]}
16... h6 {[%clk 0:02:09.9]} 17. Bh4 {[%clk 0:02:28.2]} 17... Qb8 {[%clk
0:01:34.1]} 18. Nb5 {[%clk 0:01:49.6]} 18... Be5 {[%clk 0:01:33]} 19. f4 {[%clk
0:01:50.3]} 19... Bxf4 {[%clk 0:01:29]} 20. Bxf6 {[%clk 0:01:50.9]} 20... Bxh2+
{[%clk 0:01:23.7]} 21. Kh1 {[%clk 0:01:50.8]} 21... gxf6 {[%clk 0:01:23.9]} 22.
Qg4+ {[%clk 0:01:50.3]} 22... Kh8 {[%clk 0:01:21.7]} 23. Qh4 {[%clk 0:01:49.8]}
23... Bg3 {[%clk 0:01:12.6]} 24. Qxf6+ {[%clk 0:01:42.3]} 24... Kg8 {[%clk
0:01:12.4]} 25. Qxh6 {[%clk 0:01:40.6]} 25... Qe5 {[%clk 0:01:02.9]} 26. Rf3
{[%clk 0:01:26.6]} 26... Rfd8 {[%clk 0:00:49.4]} 27. Qh3 {[%clk 0:01:21.9]}
27... Bf4 {[%clk 0:00:35.8]} 28. Qg4+ {[%clk 0:01:20.4]} 28... Bg5 {[%clk
0:00:35.4]} 29. Rg3 {[%clk 0:01:16.5]} 29... f6 {[%clk 0:00:34.7]} 30. Rh3
{[%clk 0:00:56.7]} 30... Kg7 {[%clk 0:00:29.2]} 31. Bc4 {[%clk 0:00:28.2]} 31...
Rxd1+ {[%clk 0:00:10.4]} 32. Qxd1 {[%clk 0:00:29.1]} 32... Qxe4 {[%clk
0:00:10.8]} 33. Qd7+ {[%clk 0:00:26.8]} 33... Kg8 {[%clk 0:00:08.7]} 34. Bxe6+
{[%clk 0:00:20.7]} 1-0

[Event "Early-Titled-Tuesday-Blitz-December-26-2023"]
[Site "Chess.com"]
[Date "2023.12.26"]
[Round "9"]
[White "Iskusnyh"]
[Black "Vincent_Vega95"]
[Result "0-1"]
[WhiteElo "2632"]
[BlackElo "2855"]
[TimeControl "180+1"]
[EndTime "9:45:23 PST"]
[Termination "Vincent_Vega95 won on time"]

1. d4 {[%clk 0:03:00.9]} 1... Nf6 {[%clk 0:02:57.4]} 2. c4 {[%clk 0:03:00.2]}
2... g6 {[%clk 0:02:57.5]} 3. g3 {[%clk 0:02:59.8]} 3... Bg7 {[%clk 0:02:57.6]}
4. Bg2 {[%clk 0:03:00.3]} 4... O-O {[%clk 0:02:58.5]} 5. Nc3 {[%clk 0:02:59.1]}
5... d6 {[%clk 0:02:58.8]} 6. Nf3 {[%clk 0:02:58.6]} 6... Nbd7 {[%clk
0:02:58.6]} 7. O-O {[%clk 0:02:57.9]} 7... e5 {[%clk 0:02:58.9]} 8. e4 {[%clk
0:02:57.9]} 8... a6 {[%clk 0:02:58.6]} 9. Qc2 {[%clk 0:02:52.1]} 9... exd4
{[%clk 0:02:48.6]} 10. Nxd4 {[%clk 0:02:51.6]} 10... Qe7 {[%clk 0:02:43.7]} 11.
Re1 {[%clk 0:02:15.7]} 11... c5 {[%clk 0:02:42.1]} 12. Nde2 {[%clk 0:02:09.1]}
12... Ne5 {[%clk 0:02:41.8]} 13. Nf4 {[%clk 0:02:01.9]} 13... Bg4 {[%clk
0:02:33.7]} 14. Ncd5 {[%clk 0:01:56.3]} 14... Nxd5 {[%clk 0:02:34]} 15. Nxd5
{[%clk 0:01:56.2]} 15... Qd8 {[%clk 0:02:34.3]} 16. h3 {[%clk 0:01:38.3]} 16...
Be6 {[%clk 0:02:15.8]} 17. Be3 {[%clk 0:01:24.2]} 17... Nc6 {[%clk 0:02:14.7]}
18. Rad1 {[%clk 0:01:20.2]} 18... Bd4 {[%clk 0:02:06.1]} 19. Bh6 {[%clk
0:01:14.8]} 19... Re8 {[%clk 0:02:05.8]} 20. Kh2 {[%clk 0:01:13.9]} 20... Rb8
{[%clk 0:02:04]} 21. f4 {[%clk 0:00:49.2]} 21... b5 {[%clk 0:02:02.5]} 22. e5
{[%clk 0:00:46.5]} 22... dxe5 {[%clk 0:01:55.6]} 23. Bg5 {[%clk 0:00:44.8]}
23... Bxd5 {[%clk 0:01:28.6]} 24. Bxd8 {[%clk 0:00:41.3]} 24... Bxg2 {[%clk
0:01:28.6]} 25. Qxg2 {[%clk 0:00:35.6]} 25... Nxd8 {[%clk 0:01:28.3]} 26. cxb5
{[%clk 0:00:34]} 26... axb5 {[%clk 0:01:22.6]} 27. fxe5 {[%clk 0:00:33.3]} 27...
Ne6 {[%clk 0:01:22.2]} 28. b3 {[%clk 0:00:28.7]} 28... Ra8 {[%clk 0:01:22]} 29.
Re2 {[%clk 0:00:25.5]} 29... Ra7 {[%clk 0:01:22.3]} 30. Qc6 {[%clk 0:00:23.5]}
30... Rb8 {[%clk 0:01:19.1]} 31. Rf1 {[%clk 0:00:21.4]} 31... Rc7 {[%clk
0:01:14.6]} 32. Qd5 {[%clk 0:00:20]} 32... Rd8 {[%clk 0:01:14.2]} 33. Qf3 {[%clk
0:00:19.7]} 33... c4 {[%clk 0:01:13.1]} 34. bxc4 {[%clk 0:00:19]} 34... bxc4
{[%clk 0:01:14]} 35. h4 {[%clk 0:00:18.6]} 35... h5 {[%clk 0:01:12.8]} 36. Kh3
{[%clk 0:00:18.3]} 36... c3 {[%clk 0:01:12.9]} 37. Rc2 {[%clk 0:00:17.3]} 37...
Bxe5 {[%clk 0:01:08.5]} 38. Re1 {[%clk 0:00:16.9]} 38... Rc5 {[%clk 0:01:07.5]}
39. Re3 {[%clk 0:00:13.9]} 39... Nd4 {[%clk 0:01:00.5]} 40. Qf2 {[%clk
0:00:12.9]} 40... Nxc2 {[%clk 0:01:00.4]} 41. Qxc2 {[%clk 0:00:12.9]} 41... Bg7
{[%clk 0:00:58.5]} 42. Re2 {[%clk 0:00:12.5]} 42... Rcd5 {[%clk 0:00:56.6]} 43.
Qb3 {[%clk 0:00:10.1]} 43... Rd2 {[%clk 0:00:56.3]} 44. Re7 {[%clk 0:00:09.3]}
44... Rf2 {[%clk 0:00:56.5]} 45. Rc7 {[%clk 0:00:08.1]} 45... Rdd2 {[%clk
0:00:55.9]} 0-1

[Event "Early-Titled-Tuesday-Blitz-December-26-2023"]
[Site "Chess.com"]
[Date "2023.12.26"]
[Round "9"]
[White "Elsa167"]
[Black "NovozhilovSemen"]
[Result "1-0"]
[WhiteElo "2986"]
[BlackElo "2777"]
[TimeControl "180+1"]
[EndTime "9:45:30 PST"]
[Termination "Elsa167 won by resignation"]

1. d4 {[%clk 0:03:00.9]} 1... Nf6 {[%clk 0:02:59.3]} 2. c4 {[%clk 0:03:01.2]}
2... e6 {[%clk 0:02:59.4]} 3. Nf3 {[%clk 0:03:01.4]} 3... d5 {[%clk 0:02:59.4]}
4. Nc3 {[%clk 0:03:01.8]} 4... Bb4 {[%clk 0:02:59.1]} 5. Bg5 {[%clk 0:03:02.2]}
5... h6 {[%clk 0:02:58.2]} 6. Bxf6 {[%clk 0:03:02.7]} 6... Qxf6 {[%clk
0:02:58.3]} 7. e3 {[%clk 0:03:03.3]} 7... O-O {[%clk 0:02:57.7]} 8. Rc1 {[%clk
0:03:03.9]} 8... a6 {[%clk 0:02:49.8]} 9. Qb3 {[%clk 0:03:00.2]} 9... Bxc3+
{[%clk 0:02:44.5]} 10. Qxc3 {[%clk 0:02:55.4]} 10... c6 {[%clk 0:02:44.1]} 11.
Bd3 {[%clk 0:02:51.9]} 11... Nd7 {[%clk 0:02:42.7]} 12. O-O {[%clk 0:02:50]}
12... Rd8 {[%clk 0:02:34.9]} 13. b4 {[%clk 0:02:35.6]} 13... dxc4 {[%clk
0:02:33.4]} 14. Bxc4 {[%clk 0:02:35.9]} 14... b6 {[%clk 0:02:30.3]} 15. Be2
{[%clk 0:01:51.4]} 15... Bb7 {[%clk 0:02:28.3]} 16. Rfd1 {[%clk 0:01:47.1]}
16... Rac8 {[%clk 0:02:08.2]} 17. Qb2 {[%clk 0:01:28.1]} 17... Rb8 {[%clk
0:01:48.8]} 18. Qc3 {[%clk 0:01:08.4]} 18... Rbc8 {[%clk 0:01:48]} 19. a4 {[%clk
0:00:57.8]} 19... c5 {[%clk 0:01:38]} 20. dxc5 {[%clk 0:00:58.3]} 20... Qe7
{[%clk 0:01:29.1]} 21. Ne5 {[%clk 0:00:37.7]} 21... bxc5 {[%clk 0:01:21.2]} 22.
b5 {[%clk 0:00:24.5]} 22... Nf6 {[%clk 0:01:11.8]} 23. bxa6 {[%clk 0:00:21.1]}
23... Ba8 {[%clk 0:01:12.1]} 24. Rxd8+ {[%clk 0:00:18.3]} 24... Qxd8 {[%clk
0:01:11.3]} 25. Bb5 {[%clk 0:00:15.7]} 25... Ne4 {[%clk 0:01:10.4]} 26. Qe1
{[%clk 0:00:13.7]} 26... Qd5 {[%clk 0:01:05.5]} 27. Nc4 {[%clk 0:00:06.7]} 27...
Rb8 {[%clk 0:00:53.7]} 28. f3 {[%clk 0:00:06.7]} 28... Ng5 {[%clk 0:00:50.8]}
29. e4 {[%clk 0:00:07.2]} 29... Qd8 {[%clk 0:00:48.5]} 30. Rd1 {[%clk
0:00:07.2]} 30... Qc7 {[%clk 0:00:48.3]} 31. Qd2 {[%clk 0:00:07.3]} 31... f6
{[%clk 0:00:45.9]} 32. Qd6 {[%clk 0:00:07.2]} 32... Qa7 {[%clk 0:00:43.8]} 33.
h4 {[%clk 0:00:07.2]} 33... Nf7 {[%clk 0:00:43]} 34. Qxe6 {[%clk 0:00:07.6]}
34... Rf8 {[%clk 0:00:37.4]} 35. Rd7 {[%clk 0:00:07.6]} 35... Qb8 {[%clk
0:00:37.7]} 36. Nd6 {[%clk 0:00:08]} 36... Qb6 {[%clk 0:00:34.6]} 37. Rxf7
{[%clk 0:00:07.1]} 37... c4+ {[%clk 0:00:35]} 38. Kh2 {[%clk 0:00:06.7]} 38...
Rxf7 {[%clk 0:00:34.5]} 39. Qxf7+ {[%clk 0:00:06.9]} 39... Kh7 {[%clk
0:00:35.1]} 40. Nxc4 {[%clk 0:00:05.2]} 40... Qb8+ {[%clk 0:00:34.4]} 41. e5
{[%clk 0:00:04.4]} 41... Qd8 {[%clk 0:00:30.5]} 42. h5 {[%clk 0:00:04.1]} 42...
fxe5 {[%clk 0:00:28.9]} 43. Qg6+ {[%clk 0:00:04.5]} 43... Kh8 {[%clk 0:00:29]}
44. Qe8+ {[%clk 0:00:05.2]} 1-0

[Event "Early-Titled-Tuesday-Blitz-December-26-2023"]
[Site "Chess.com"]
[Date "2023.12.26"]
[Round "9"]
[White "Witik"]
[Black "karinachess1"]
[Result "1-0"]
[WhiteElo "2729"]
[BlackElo "2569"]
[TimeControl "180+1"]
[EndTime "9:45:33 PST"]
[Termination "Witik won by resignation"]

1. d4 {[%clk 0:02:59.8]} 1... Nf6 {[%clk 0:02:59.7]} 2. c4 {[%clk 0:03:00]} 2...
e6 {[%clk 0:02:59.9]} 3. g3 {[%clk 0:03:00.3]} 3... d5 {[%clk 0:02:59.8]} 4. Nf3
{[%clk 0:03:00.8]} 4... dxc4 {[%clk 0:02:58.9]} 5. Bg2 {[%clk 0:03:01.2]} 5...
Nc6 {[%clk 0:02:58.8]} 6. O-O {[%clk 0:03:01.5]} 6... Rb8 {[%clk 0:02:58.5]} 7.
Nc3 {[%clk 0:03:01.7]} 7... b5 {[%clk 0:02:58.4]} 8. e4 {[%clk 0:03:01.8]} 8...
Be7 {[%clk 0:02:44.6]} 9. d5 {[%clk 0:02:52.5]} 9... Nb4 {[%clk 0:02:20.4]} 10.
Nd4 {[%clk 0:02:36.6]} 10... Bd7 {[%clk 0:01:44.8]} 11. dxe6 {[%clk 0:02:25.6]}
11... fxe6 {[%clk 0:01:44.8]} 12. e5 {[%clk 0:02:25.6]} 12... Ng8 {[%clk
0:01:11.7]} 13. Qg4 {[%clk 0:02:09]} 13... g6 {[%clk 0:00:40.8]} 14. Be3 {[%clk
0:01:23.6]} 14... c5 {[%clk 0:00:34.2]} 15. Nxe6 {[%clk 0:01:22.2]} 15... Qc8
{[%clk 0:00:34.6]} 16. Ng7+ {[%clk 0:01:22.3]} 16... Kf7 {[%clk 0:00:34.9]} 17.
e6+ {[%clk 0:01:17.3]} 17... Bxe6 {[%clk 0:00:27.7]} 18. Nxe6 {[%clk 0:01:17.3]}
18... Qxe6 {[%clk 0:00:28.6]} 19. Qf3+ {[%clk 0:01:02.5]} 19... Nf6 {[%clk
0:00:27.1]} 20. Ne4 {[%clk 0:01:03]} 20... Qxe4 {[%clk 0:00:24]} 21. Qxe4 {[%clk
0:01:01.3]} 21... Nxe4 {[%clk 0:00:24.9]} 22. Bxe4 {[%clk 0:01:02.1]} 22... Rhd8
{[%clk 0:00:23.4]} 23. a4 {[%clk 0:01:00.1]} 23... a6 {[%clk 0:00:16.9]} 24.
axb5 {[%clk 0:01:00.5]} 24... axb5 {[%clk 0:00:17.8]} 25. Ra7 {[%clk 0:01:00.9]}
25... Kf6 {[%clk 0:00:15.3]} 26. Rxe7 {[%clk 0:01:00]} 26... Kxe7 {[%clk
0:00:15.6]} 27. Bxc5+ {[%clk 0:01:00.4]} 27... Ke6 {[%clk 0:00:14.3]} 28. Bxb4
{[%clk 0:01:00.9]} 28... Ke5 {[%clk 0:00:12]} 29. Re1 {[%clk 0:00:59.4]} 29...
Kd4 {[%clk 0:00:10.6]} 30. f3 {[%clk 0:00:45.8]} 30... Re8 {[%clk 0:00:07.4]}
31. Kf2 {[%clk 0:00:45.8]} 31... Rbd8 {[%clk 0:00:04.4]} 32. Ba5 {[%clk
0:00:36.8]} 32... Rb8 {[%clk 0:00:03.4]} 33. Bb4 {[%clk 0:00:34.9]} 33... Rbd8
{[%clk 0:00:03.2]} 34. h4 {[%clk 0:00:30.9]} 34... c3 {[%clk 0:00:03.6]} 35.
Bxc3+ {[%clk 0:00:26.3]} 35... Kc4 {[%clk 0:00:04.3]} 36. Re2 {[%clk 0:00:27]}
36... b4 {[%clk 0:00:04.5]} 37. Bf6 {[%clk 0:00:27.2]} 37... Rc8 {[%clk
0:00:04.5]} 38. g4 {[%clk 0:00:20.9]} 38... Kb3 {[%clk 0:00:05]} 39. Bd5+ {[%clk
0:00:20.2]} 39... Ka4 {[%clk 0:00:04.7]} 40. Rxe8 {[%clk 0:00:15.2]} 40... Rxe8
{[%clk 0:00:05]} 41. Bc6+ {[%clk 0:00:15.6]} 1-0

[Event "Early-Titled-Tuesday-Blitz-December-26-2023"]
[Site "Chess.com"]
[Date "2023.12.26"]
[Round "9"]
[White "margarita_2703"]
[Black "CFalcons8"]
[Result "1-0"]
[WhiteElo "2351"]
[BlackElo "2232"]
[TimeControl "180+1"]
[EndTime "9:45:33 PST"]
[Termination "margarita_2703 won by resignation"]

1. e4 {[%clk 0:02:55.2]} 1... e5 {[%clk 0:02:52.2]} 2. Nf3 {[%clk 0:02:54.7]}
2... Nc6 {[%clk 0:02:52.8]} 3. Bc4 {[%clk 0:02:55.2]} 3... Bc5 {[%clk
0:02:51.4]} 4. O-O {[%clk 0:02:54.2]} 4... d6 {[%clk 0:02:49.6]} 5. b4 {[%clk
0:02:52.8]} 5... Bxb4 {[%clk 0:02:41.5]} 6. c3 {[%clk 0:02:28.1]} 6... Ba5
{[%clk 0:02:41]} 7. d4 {[%clk 0:02:28.1]} 7... Nf6 {[%clk 0:02:28.8]} 8. Bg5
{[%clk 0:02:18.5]} 8... h6 {[%clk 0:02:16.4]} 9. Bh4 {[%clk 0:02:16.7]} 9... g5
{[%clk 0:02:15.9]} 10. Bg3 {[%clk 0:02:16.9]} 10... Qe7 {[%clk 0:02:07.3]} 11.
d5 {[%clk 0:02:14.3]} 11... Nd8 {[%clk 0:01:56.4]} 12. Qa4+ {[%clk 0:02:12.8]}
12... Bd7 {[%clk 0:01:47.4]} 13. Qxa5 {[%clk 0:02:12.6]} 13... Nxe4 {[%clk
0:01:46.8]} 14. Nbd2 {[%clk 0:02:10.5]} 14... Nxd2 {[%clk 0:01:44.7]} 15. Nxd2
{[%clk 0:02:11.4]} 15... b6 {[%clk 0:01:27.5]} 16. Qb4 {[%clk 0:02:06.9]} 16...
a5 {[%clk 0:01:25.5]} 17. Qb1 {[%clk 0:02:06.6]} 17... f5 {[%clk 0:01:23.1]} 18.
f3 {[%clk 0:01:58.9]} 18... O-O {[%clk 0:01:07.6]} 19. Bd3 {[%clk 0:01:53]}
19... Nb7 {[%clk 0:01:06.8]} 20. c4 {[%clk 0:01:52.7]} 20... Nc5 {[%clk
0:01:06.2]} 21. Bc2 {[%clk 0:01:52.8]} 21... Qg7 {[%clk 0:00:48.6]} 22. Bf2
{[%clk 0:01:50.9]} 22... Na6 {[%clk 0:00:38.7]} 23. a3 {[%clk 0:01:43.9]} 23...
Rab8 {[%clk 0:00:33.8]} 24. Bd3 {[%clk 0:01:41.3]} 24... c6 {[%clk 0:00:17.3]}
25. Qc2 {[%clk 0:01:38.7]} 25... cxd5 {[%clk 0:00:15.8]} 26. cxd5 {[%clk
0:01:39.6]} 26... Nc5 {[%clk 0:00:11.7]} 27. Bxc5 {[%clk 0:01:38.6]} 27... dxc5
{[%clk 0:00:12.6]} 28. a4 {[%clk 0:01:37.6]} 28... Qf6 {[%clk 0:00:07.6]} 29.
Bc4 {[%clk 0:01:37.9]} 29... Qd6 {[%clk 0:00:06.7]} 30. Qd3 {[%clk 0:01:36.2]}
30... Rbe8 {[%clk 0:00:06]} 31. Rad1 {[%clk 0:01:34]} 31... Kh8 {[%clk
0:00:04.4]} 32. Bb5 {[%clk 0:01:34]} 32... Bxb5 {[%clk 0:00:02.7]} 33. axb5
{[%clk 0:01:34.6]} 33... Qg6 {[%clk 0:00:03.1]} 34. Nc4 {[%clk 0:01:34.8]} 34...
e4 {[%clk 0:00:03.5]} 35. fxe4 {[%clk 0:01:35.7]} 35... fxe4 {[%clk 0:00:03.8]}
36. Rxf8+ {[%clk 0:01:35.3]} 36... Rxf8 {[%clk 0:00:04.7]} 37. Qc3+ {[%clk
0:01:35.5]} 37... Kh7 {[%clk 0:00:05.1]} 38. Rf1 {[%clk 0:01:34.7]} 38... Rxf1+
{[%clk 0:00:04.4]} 39. Kxf1 {[%clk 0:01:35.4]} 39... Qf5+ {[%clk 0:00:05.3]} 40.
Ke1 {[%clk 0:01:34.8]} 40... Qxd5 {[%clk 0:00:06]} 41. Ke2 {[%clk 0:01:30.4]}
41... Qe6 {[%clk 0:00:05.4]} 42. Ne3 {[%clk 0:01:29.5]} 42... Qa2+ {[%clk
0:00:05.2]} 43. Qd2 {[%clk 0:01:29]} 43... Qb3 {[%clk 0:00:03.5]} 44. Qd7+
{[%clk 0:01:28.3]} 44... Kg6 {[%clk 0:00:04]} 45. Qf5+ {[%clk 0:01:28.6]} 45...
Kg7 {[%clk 0:00:04.1]} 46. Qxe4 {[%clk 0:01:29.3]} 46... Qxb5+ {[%clk
0:00:04.1]} 47. Kf3 {[%clk 0:01:27.2]} 47... Qd7 {[%clk 0:00:02.8]} 48. Nf5+
{[%clk 0:01:27.2]} 48... Kf6 {[%clk 0:00:03]} 49. Ne3 {[%clk 0:01:25.9]} 49...
Qe6 {[%clk 0:00:03]} 50. Ng4+ {[%clk 0:01:23.4]} 50... Ke7 {[%clk 0:00:02.6]}
51. Qb7+ {[%clk 0:01:23.4]} 51... Qd7 {[%clk 0:00:01.7]} 52. Qxb6 {[%clk
0:01:23]} 52... Qf5+ {[%clk 0:00:01.9]} 53. Kg3 {[%clk 0:01:19.4]} 53... Qd3+
{[%clk 0:00:02.2]} 54. Kf2 {[%clk 0:01:18.5]} 54... Qd4+ {[%clk 0:00:02.3]} 55.
Ne3 {[%clk 0:01:17.1]} 55... Qd2+ {[%clk 0:00:02.8]} 56. Kf3 {[%clk 0:01:16.8]}
56... Qd4 {[%clk 0:00:02.8]} 57. Nf5+ {[%clk 0:01:14.3]} 1-0

[Event "Early-Titled-Tuesday-Blitz-December-26-2023"]
[Site "Chess.com"]
[Date "2023.12.26"]
[Round "9"]
[White "PeshkaCh"]
[Black "BogdanDeac"]
[Result "0-1"]
[WhiteElo "2840"]
[BlackElo "3011"]
[TimeControl "180+1"]
[EndTime "9:45:36 PST"]
[Termination "BogdanDeac won by checkmate"]

1. Nf3 {[%clk 0:03:00.9]} 1... d5 {[%clk 0:02:59.3]} 2. d4 {[%clk 0:03:01.4]}
2... Nf6 {[%clk 0:02:58.4]} 3. c4 {[%clk 0:03:02]} 3... e6 {[%clk 0:02:58.2]} 4.
Nc3 {[%clk 0:03:02.1]} 4... Nbd7 {[%clk 0:02:58.3]} 5. Bg5 {[%clk 0:03:02.1]}
5... h6 {[%clk 0:02:57.2]} 6. Bh4 {[%clk 0:03:01.9]} 6... Be7 {[%clk 0:02:57]}
7. e3 {[%clk 0:03:02.4]} 7... O-O {[%clk 0:02:57]} 8. cxd5 {[%clk 0:03:02.2]}
8... Nxd5 {[%clk 0:02:56.5]} 9. Bxe7 {[%clk 0:03:01.9]} 9... Qxe7 {[%clk
0:02:57.4]} 10. Bd3 {[%clk 0:03:02]} 10... Nxc3 {[%clk 0:02:54]} 11. bxc3 {[%clk
0:03:02.9]} 11... b6 {[%clk 0:02:54]} 12. Be4 {[%clk 0:03:00.8]} 12... Rb8
{[%clk 0:02:53.7]} 13. O-O {[%clk 0:03:01.4]} 13... c5 {[%clk 0:02:51]} 14. Qa4
{[%clk 0:02:59.7]} 14... Nf6 {[%clk 0:02:50.3]} 15. Bc6 {[%clk 0:02:59.5]} 15...
Qc7 {[%clk 0:02:35.4]} 16. Ne5 {[%clk 0:02:59]} 16... a6 {[%clk 0:02:35.1]} 17.
Rfd1 {[%clk 0:02:53.5]} 17... Rd8 {[%clk 0:02:27.6]} 18. h3 {[%clk 0:02:50.7]}
18... Nd5 {[%clk 0:02:15.1]} 19. Bxd5 {[%clk 0:02:34.9]} 19... exd5 {[%clk
0:02:14.2]} 20. Qa3 {[%clk 0:02:21.6]} 20... c4 {[%clk 0:02:02.5]} 21. Rab1
{[%clk 0:02:20.8]} 21... f6 {[%clk 0:01:41.4]} 22. Ng6 {[%clk 0:02:11.8]} 22...
Kf7 {[%clk 0:01:40.4]} 23. Nf4 {[%clk 0:02:11.4]} 23... b5 {[%clk 0:01:38.7]}
24. Re1 {[%clk 0:02:02.2]} 24... a5 {[%clk 0:01:16.8]} 25. f3 {[%clk 0:01:55.4]}
25... g5 {[%clk 0:01:01.2]} 26. Nh5 {[%clk 0:01:48]} 26... Bf5 {[%clk
0:00:57.4]} 27. e4 {[%clk 0:01:33.7]} 27... Bg6 {[%clk 0:00:47.4]} 28. exd5
{[%clk 0:01:13.3]} 28... Rxd5 {[%clk 0:00:17.4]} 29. Re4 {[%clk 0:01:01.5]}
29... b4 {[%clk 0:00:12.3]} 30. Qa4 {[%clk 0:01:00.3]} 30... Bxh5 {[%clk
0:00:07.7]} 31. cxb4 {[%clk 0:00:57.8]} 31... Bg6 {[%clk 0:00:07.2]} 32. Qc2
{[%clk 0:00:49.2]} 32... Rxd4 {[%clk 0:00:05.7]} 33. Qf2 {[%clk 0:00:38.9]}
33... Rxe4 {[%clk 0:00:05.1]} 34. fxe4 {[%clk 0:00:39.3]} 34... Qb6 {[%clk
0:00:05.4]} 35. a3 {[%clk 0:00:34.1]} 35... Qxf2+ {[%clk 0:00:05]} 36. Kxf2
{[%clk 0:00:35]} 36... axb4 {[%clk 0:00:05.3]} 37. axb4 {[%clk 0:00:35.6]} 37...
Bxe4 {[%clk 0:00:05.6]} 38. Re1 {[%clk 0:00:35.8]} 38... f5 {[%clk 0:00:05.8]}
39. g4 {[%clk 0:00:35.4]} 39... Rxb4 {[%clk 0:00:06]} 40. gxf5 {[%clk
0:00:36.3]} 40... Bxf5 {[%clk 0:00:06.5]} 41. Re5 {[%clk 0:00:36.3]} 41... Kf6
{[%clk 0:00:06.2]} 42. Rc5 {[%clk 0:00:36.9]} 42... Rb2+ {[%clk 0:00:06.4]} 43.
Kg3 {[%clk 0:00:37.1]} 43... Rb3+ {[%clk 0:00:06.9]} 44. Kf2 {[%clk 0:00:36.9]}
44... c3 {[%clk 0:00:07.8]} 45. Kg3 {[%clk 0:00:36.2]} 45... c2+ {[%clk
0:00:07.8]} 46. Kf2 {[%clk 0:00:36.8]} 46... Rb1 {[%clk 0:00:08.5]} 47. Rc6+
{[%clk 0:00:37.4]} 47... Ke7 {[%clk 0:00:08.8]} 48. Rc7+ {[%clk 0:00:37.5]}
48... Kd6 {[%clk 0:00:09.2]} 49. Rc3 {[%clk 0:00:38.4]} 49... c1=Q {[%clk
0:00:08.9]} 50. Rxc1 {[%clk 0:00:39.3]} 50... Rxc1 {[%clk 0:00:09.6]} 51. Kg2
{[%clk 0:00:40.2]} 51... Rc3 {[%clk 0:00:09.8]} 52. Kh2 {[%clk 0:00:41.1]} 52...
h5 {[%clk 0:00:10]} 53. Kg1 {[%clk 0:00:42]} 53... h4 {[%clk 0:00:10.6]} 54. Kg2
{[%clk 0:00:42.9]} 54... Ke5 {[%clk 0:00:11.2]} 55. Kh2 {[%clk 0:00:43.8]} 55...
Kf4 {[%clk 0:00:12.1]} 56. Kg2 {[%clk 0:00:44.7]} 56... Be4+ {[%clk 0:00:12.1]}
57. Kg1 {[%clk 0:00:45.6]} 57... Rc1+ {[%clk 0:00:12]} 58. Kh2 {[%clk
0:00:46.1]} 58... Rc2+ {[%clk 0:00:12.4]} 59. Kg1 {[%clk 0:00:46]} 59... Bd3
{[%clk 0:00:13.1]} 60. Kh1 {[%clk 0:00:46.4]} 60... Kg3 {[%clk 0:00:13.8]} 61.
Kg1 {[%clk 0:00:47.3]} 61... Rc1# {[%clk 0:00:14.4]} 0-1

[Event "Early-Titled-Tuesday-Blitz-December-26-2023"]
[Site "Chess.com"]
[Date "2023.12.26"]
[Round "9"]
[White "bazar-wokzal"]
[Black "secrethawk1"]
[Result "1-0"]
[WhiteElo "2645"]
[BlackElo "2463"]
[TimeControl "180+1"]
[EndTime "9:45:41 PST"]
[Termination "bazar-wokzal won on time"]

1. e4 {[%clk 0:03:00.9]} 1... c5 {[%clk 0:02:55.8]} 2. c3 {[%clk 0:03:00.5]}
2... d5 {[%clk 0:02:46.8]} 3. exd5 {[%clk 0:03:00.5]} 3... Qxd5 {[%clk
0:02:44.4]} 4. d4 {[%clk 0:03:00.8]} 4... Nf6 {[%clk 0:02:43.5]} 5. Nf3 {[%clk
0:03:00.2]} 5... Bg4 {[%clk 0:02:31.6]} 6. dxc5 {[%clk 0:02:59.1]} 6... Qxd1+
{[%clk 0:02:28.1]} 7. Kxd1 {[%clk 0:02:58.9]} 7... Nc6 {[%clk 0:02:25.2]} 8. b4
{[%clk 0:02:57.5]} 8... O-O-O+ {[%clk 0:02:11.9]} 9. Kc2 {[%clk 0:02:56.1]} 9...
g6 {[%clk 0:01:53.8]} 10. Bb5 {[%clk 0:02:46.5]} 10... Bg7 {[%clk 0:01:53.2]}
11. Bxc6 {[%clk 0:02:45.8]} 11... bxc6 {[%clk 0:01:51.1]} 12. Ne5 {[%clk
0:02:43.6]} 12... Bf5+ {[%clk 0:01:46.6]} 13. Kb2 {[%clk 0:02:41.4]} 13... Rhf8
{[%clk 0:01:30.3]} 14. Nxc6 {[%clk 0:02:40.6]} 14... Rd7 {[%clk 0:01:29.4]} 15.
Na3 {[%clk 0:02:36.7]} 15... Ne4 {[%clk 0:01:25.9]} 16. f3 {[%clk 0:02:32]}
16... Nxc3 {[%clk 0:01:17]} 17. Kb3 {[%clk 0:02:23.4]} 17... Nd1 {[%clk
0:01:10.3]} 18. Rb1 {[%clk 0:01:47]} 18... Bxb1 {[%clk 0:01:04.9]} 19. Nxb1
{[%clk 0:01:47.9]} 19... Nf2 {[%clk 0:01:04.5]} 20. Rf1 {[%clk 0:01:43.7]} 20...
Nd3 {[%clk 0:01:02.9]} 21. Be3 {[%clk 0:01:39.7]} 21... f5 {[%clk 0:00:54.7]}
22. Nc3 {[%clk 0:01:37.5]} 22... f4 {[%clk 0:00:53.2]} 23. Bg1 {[%clk
0:01:33.3]} 23... a6 {[%clk 0:00:49.6]} 24. Ne4 {[%clk 0:01:31.2]} 24... Ne5
{[%clk 0:00:46.9]} 25. Na5 {[%clk 0:01:21.3]} 25... Rd3+ {[%clk 0:00:37.7]} 26.
Ka4 {[%clk 0:01:19.2]} 26... Kc7 {[%clk 0:00:27.7]} 27. Rc1 {[%clk 0:01:17.9]}
27... Rb8 {[%clk 0:00:22.9]} 28. c6 {[%clk 0:01:08]} 28... e6 {[%clk 0:00:09.5]}
29. Nc5 {[%clk 0:01:07.4]} 29... Rd2 {[%clk 0:00:04.7]} 30. Nxe6+ {[%clk
0:00:57.1]} 30... Kc8 {[%clk 0:00:04.8]} 31. Nxg7 {[%clk 0:00:53.8]} 31... Rxa2+
{[%clk 0:00:04.5]} 32. Kb3 {[%clk 0:00:54]} 32... Rxa5 {[%clk 0:00:04.5]} 33. c7
{[%clk 0:00:40.8]} 33... Rb7 {[%clk 0:00:03.7]} 34. Ne8 {[%clk 0:00:41.1]} 34...
Rd5 {[%clk 0:00:03.9]} 35. Bc5 {[%clk 0:00:37.6]} 35... Nd3 {[%clk 0:00:03.1]}
36. Kc4 {[%clk 0:00:32.5]} 36... Rxc5+ {[%clk 0:00:02.8]} 37. bxc5 {[%clk
0:00:32.2]} 37... Nxc1 {[%clk 0:00:03.1]} 38. Kd5 {[%clk 0:00:23.7]} 38... Rxc7
{[%clk 0:00:02.1]} 39. c6 {[%clk 0:00:16.4]} 39... Kd8 {[%clk 0:00:01.8]} 40.
Nd6 {[%clk 0:00:14.7]} 40... Nb3 {[%clk 0:00:01.4]} 41. Nc4 {[%clk 0:00:13.1]}
1-0